bitfinex/quotes_ETHUSD_20250730
["timestamp","ask_amount","ask_price","bid_price","bid_amount"]
[1753864909674,0.37306297,3824.4,3824.1,0.9301]
[1753864909875,0.37306297,3824.4,3824.2,0.9301]
[1753864910283,0.37306297,3824.4,3824.3,0.4493]
[1753864910477,0.1304,3824.4,3824.3,0.4493]
[1753864910998,0.1304,3824.4,3824.3,0.9301]
[1753864912287,0.19868889,3824.5,3824.3,0.9301]
[1753864912589,3.0,3824.7,3824.4,0.9301]
[1753864912797,3.0,3824.7,3824.5,0.4493]
[1753864912982,0.1304,3824.8,3824.5,0.4493]
[1753864913188,0.1304,3824.8,3824.6,0.4493]
[1753864913388,0.1304,3824.8,3824.6,0.9301]
[1753864913692,0.37327185,3824.8,3824.7,0.4493]
[1753864914483,0.1304,3824.8,3824.7,0.4493]
[1753864915064,0.1304,3824.8,3824.4,0.4808]
[1753864915065,0.86972719,3824.8,3824.4,0.4808]
[1753864915283,0.24287185,3824.7,3824.5,0.9301]
[1753864915797,0.24287185,3824.6,3824.3,2.61480828]
[1753864916101,0.32496796,3824.8,3824.2,0.8995]
[1753864916272,0.24326925,3824.7,3824.2,0.8995]
[1753864916595,0.24326925,3824.7,3824.3,0.9301]
[1753864916802,0.24326925,3824.7,3824.3,3.54495497]
[1753864916983,0.24326925,3824.7,3824.3,2.61485497]
[1753864917190,0.24326925,3824.6,3824.4,3.54484054]
[1753864917386,0.24326925,3824.5,3824.4,2.61474054]
[1753864917883,0.24326925,3824.5,3824.4,3.54484054]
[1753864919069,0.24326925,3824.5,3824.4,3.67524054]
[1753864919267,0.19456796,3824.8,3824.6,2.61465251]
[1753864919471,0.1304,3825.4,3824.8,2.61451475]
[1753864919694,0.24373385,3825.3,3824.9,3.06374743]
[1753864920004,0.24373385,3825.2,3825.0,3.54441502]
[1753864920200,0.24373385,3825.1,3825.0,2.61437908]
[1753864920733,0.24373385,3825.1,3825.0,3.43687908]
[1753864920935,0.24373385,3825.1,3825.0,4.36577908]
[1753864921932,0.04,3825.9,3825.5,0.772]
[1753864922230,0.24371734,3825.8,3825.5,3.38601178]
[1753864922432,0.24371734,3825.7,3825.6,3.54286905]
[1753864922620,0.24371734,3825.7,3825.6,2.61396905]
[1753864922809,0.24371734,3825.7,3825.6,3.67326905]
[1753864923008,0.44166857,3825.7,3825.6,3.67326905]
[1753864923416,0.19795123,3825.7,3825.6,3.67326905]
[1753864923617,0.24360816,3825.7,3825.6,3.67326905]
[1753864923828,0.04,3825.9,3825.7,2.61390072]
[1753864924008,0.24360391,3825.8,3825.7,0.9289]
[1753864924405,0.04,3825.9,3825.7,1.0593]
[1753864924628,0.04,3825.9,3825.7,0.6029]
[1753864924832,0.04,3825.9,3825.8,3.5427324]
[1753864925831,0.04,3825.9,3825.8,4.3056324]
[1753864929419,0.04,3825.9,3825.8,4.7799]
[1753864929743,0.04,3825.9,3825.8,7.3937324]
[1753864930150,0.04,3825.9,3825.8,4.7799]
[1753864931354,0.04,3825.9,3825.8,7.3937324]
[1753864931562,0.04,3825.9,3825.8,8.3226324]
[1753864933040,0.042,3825.9,3825.8,8.3226324]
[1753864936085,0.042,3825.9,3825.8,3.3767324]
[1753864936280,0.042,3825.9,3825.8,8.3216324]
[1753864938628,0.042,3825.9,3825.8,7.3927324]
[1753864938828,0.042,3825.9,3825.8,8.3216324]
[1753864940255,0.042,3825.9,3825.8,12.5516324]
[1753864943366,1e-08,3826.3,3826.2,3.41785914]
[1753864943565,1e-08,3826.3,3826.2,7.56325914]
[1753864943770,1e-08,3826.3,3826.2,8.49215914]
[1753864944581,1e-08,3826.3,3826.2,0.9347]
[1753864944740,0.96530001,3826.3,3826.2,0.1304]
[1753864944949,0.96530001,3826.3,3826.2,4.1454]
[1753864947175,0.96530001,3826.3,3825.5,2.61403738]
[1753864947372,0.9653,3826.2,3825.9,0.1304]
[1753864947536,0.9653,3826.2,3826.0,4.015]
[1753864947873,0.9653,3826.1,3826.0,4.015]
[1753864948270,0.9653,3826.1,3825.9,0.1304]
[1753864948456,0.472,3826.1,3825.9,0.1304]
[1753864948660,0.9653,3826.0,3825.9,0.1304]
[1753864948832,0.9653,3826.0,3825.9,4.1454]
[1753864949556,1.20968848,3826.0,3825.9,4.1454]
[1753864949727,1.20968848,3826.0,3825.9,0.1304]
[1753864949926,1.20968848,3826.0,3825.9,4.1454]
[1753864953547,0.24438848,3826.0,3825.9,7.07476408]
[1753864954278,0.24438848,3826.0,3825.9,7.56266408]
[1753864954468,1e-08,3826.3,3826.2,2.61355914]
[1753864954659,0.24480196,3826.3,3826.2,6.62855914]
[1753864955180,0.24480196,3826.3,3826.2,7.56245914]
[1753864955838,1e-08,3826.3,3826.2,8.31295914]
[1753864957678,0.002,3826.4,3826.3,3.41499083]
[1753864957679,1e-08,3826.4,3826.3,3.41499083]
[1753864957866,1e-08,3826.4,3826.3,7.45067673]
[1753864958887,1e-08,3826.4,3826.3,11.68067673]
[1753864959072,1e-08,3826.4,3826.3,8.57889083]
[1753864961790,1e-08,3826.4,3826.3,7.64499083]
[1753864962173,0.45750001,3826.4,3826.3,11.65899083]
[1753864962575,1e-08,3826.4,3826.3,11.65899083]
[1753864963573,1e-08,3826.4,3826.3,11.78939083]
[1753864965022,1e-08,3826.4,3826.3,7.55939083]
[1753864966124,1e-08,3826.4,3826.3,3.54539083]
[1753864966325,0.45750001,3826.4,3826.3,7.55939083]
[1753864967227,0.90560001,3826.4,3826.3,2.74389083]
[1753864967386,0.90560001,3826.4,3826.3,6.75789083]
[1753864968106,0.45750001,3826.4,3826.3,6.75789083]
[1753864968308,1e-08,3826.4,3826.3,6.75789083]
[1753864968508,1e-08,3826.4,3826.3,10.79357673]
[1753864968809,1e-08,3826.4,3826.3,10.30567673]
[1753864969379,1e-08,3826.4,3826.3,11.55457673]
[1753864970480,1e-08,3826.4,3826.3,12.10457673]
[1753864970818,0.04,3826.9,3826.8,3.40644936]
[1753864970993,0.04,3826.9,3826.8,7.41944936]
[1753864971201,0.1304,3828.2,3826.9,0.793]
[1753864971523,0.1304,3828.2,3826.8,6.75654936]
[1753864971524,0.8129,3828.7,3827.8,5.71425259]
[1753864971682,0.24441643,3828.6,3827.8,9.72725259]
[1753864971880,0.1998438,3828.5,3827.8,9.72725259]
[1753864972093,0.24441643,3828.4,3827.8,10.66115259]
[1753864972312,0.4575,3828.5,3828.4,2.61205725]
[1753864972507,0.4575,3828.5,3828.4,6.62505725]
[1753864972786,0.04,3828.9,3828.8,2.61178437]
[1753864973013,0.73237772,3828.9,3828.8,6.62478437]
[1753864973215,0.28427772,3828.9,3828.8,6.62478437]
[1753864973381,0.74177772,3828.9,3828.8,6.62478437]
[1753864973583,1.18987772,3828.9,3828.8,6.62478437]
[1753864974006,0.28427772,3828.9,3828.8,6.62478437]
[1753864974209,0.04,3828.9,3828.8,6.62478437]
[1753864974587,0.04,3828.9,3828.8,4.013]
[1753864974802,0.4975,3828.9,3828.8,4.013]
[1753864975008,0.4975,3828.9,3828.8,6.62478437]
[1753864975214,0.04,3828.9,3828.8,6.62478437]
[1753864976227,0.4975,3828.9,3828.8,4.013]
[1753864976795,0.4975,3828.9,3828.8,6.62478437]
[1753864977613,0.4975,3828.9,3828.3,0.7977]
[1753864977814,0.9476,3828.9,3828.6,2.61190781]
[1753864978122,0.4481,3828.8,3828.7,6.62384239]
[1753864978326,0.9056,3828.8,3828.7,4.012]
[1753864979231,0.9056,3828.8,3828.7,6.62385258]
[1753864979729,0.9056,3828.8,3828.7,2.61185258]
[1753864980026,1.6917,3828.8,3828.2,2.61219224]
[1753864980227,1.6917,3828.8,3827.7,0.8094]
[1753864980228,0.9056,3828.7,3827.7,0.8094]
[1753864980426,0.95947,3828.8,3828.1,2.61225757]
[1753864980727,0.9194,3828.6,3828.2,4.011]
[1753864980929,0.9194,3828.5,3827.8,2.61246669]
[1753864981129,0.9194,3828.4,3827.9,4.011]
[1753864981434,1.6867,3828.3,3828.1,0.1304]
[1753864981630,0.7673,3828.3,3828.2,4.011]
[1753864982114,1.6867,3828.3,3828.2,4.011]
[1753864982426,1.85537,3828.3,3828.1,0.1304]
[1753864982592,0.93597,3828.3,3828.2,4.011]
[1753864982787,0.7673,3828.3,3828.2,4.011]
[1753864983315,1.6867,3828.3,3828.2,4.011]
[1753864986153,1.2551,3828.6,3828.2,4.011]
[1753864986319,0.7863,3828.6,3828.2,4.011]
[1753864986524,0.4688,3828.5,3828.2,4.011]
[1753864986850,0.4688,3828.4,3828.2,4.011]
[1753864987165,0.4506,3828.3,3828.2,4.011]
[1753864987461,0.9194,3828.3,3828.2,4.011]
[1753864987606,0.18361,3828.4,3828.2,4.011]
[1753864987807,0.4688,3828.3,3828.2,6.62318521]
[1753864988146,0.4688,3828.7,3828.3,0.1304]
[1753864988320,0.4688,3828.7,3828.2,4.5894]
[1753864988526,0.4506,3828.8,3828.2,4.5894]
[1753864988527,0.4506,3828.8,3828.5,0.1304]
[1753864988721,0.4688,3828.6,3828.5,0.1304]
[1753864988927,0.4688,3828.6,3828.5,4.1414]
[1753864989112,0.9194,3828.6,3828.5,4.1414]
[1753864990368,1.09129,3828.6,3828.5,0.1304]
[1753864990568,0.64069,3828.6,3828.5,4.011]
[1753864991047,0.4688,3828.6,3828.5,4.011]
[1753864991546,0.9194,3828.6,3828.5,4.011]
[1753864992423,0.9194,3828.6,3828.4,0.1304]
[1753864992628,0.9194,3828.6,3827.6,1.2217]
[1753864992629,0.1304,3828.6,3828.5,4.011]
[1753864992823,0.1304,3828.6,3828.1,0.1304]
[1753864993042,0.1304,3828.6,3828.2,4.011]
[1753864993254,0.9194,3828.5,3828.2,4.011]
[1753864993550,0.1304,3828.6,3828.2,4.011]
[1753864993724,0.4688,3828.8,3828.3,2.74252548]
[1753864993930,0.4688,3828.8,3828.3,0.1304]
[1753864994129,0.4688,3828.7,3828.3,2.74252484]
[1753864994336,0.4688,3828.6,3828.3,2.74252484]
[1753864996451,0.4688,3828.6,3828.3,0.1304]
[1753864996652,0.4688,3828.6,3828.3,2.74251026]
[1753864996830,0.4688,3828.5,3828.3,2.74251026]
[1753864997231,0.4688,3828.4,3828.3,0.1304]
[1753864998044,0.4688,3828.4,3827.5,0.001]
[1753864998365,0.8032,3828.3,3828.0,0.1304]
[1753864998513,0.9885,3828.3,3828.1,4.01]
[1753864998718,0.4688,3828.2,3828.1,4.01]
[1753864999857,0.9194,3828.2,3828.1,4.01]
[1753865002872,0.4688,3828.2,3828.1,4.01]
[1753865005838,0.4688,3828.2,3827.9,2.74278626]
[1753865006178,0.9194,3828.2,3828.0,4.01]
[1753865006358,0.4688,3828.1,3828.0,4.01]
[1753865006569,0.8032,3828.3,3828.0,4.01]
[1753865006765,0.5992,3828.5,3828.1,2.61226195]
[1753865006970,0.332663,3828.5,3828.2,4.01]
[1753865007168,0.4688,3828.4,3828.2,4.01]
[1753865010582,0.332663,3828.5,3828.2,4.01]
[1753865010988,0.202263,3828.5,3828.2,4.01]
[1753865011196,0.202263,3828.5,3828.3,0.1304]
[1753865011365,0.202263,3828.5,3828.4,4.01]
[1753865011366,0.701863,3828.5,3828.4,4.01]
[1753865013046,0.202263,3828.5,3828.3,0.1304]
[1753865013249,0.4996,3828.4,3827.7,1.2245]
[1753865013454,0.4996,3828.4,3828.1,0.1304]
[1753865013688,0.4996,3828.4,3828.2,4.01]
[1753865013988,0.8154,3828.8,3828.3,3.19896912]
[1753865014301,0.24487666,3828.7,3828.4,4.01]
[1753865014478,0.24487666,3828.7,3828.4,4.4665]
[1753865014681,0.5416,3828.9,3828.4,4.4665]
[1753865014682,0.042,3828.9,3828.4,4.01]
[1753865014857,0.4996,3828.7,3828.4,4.01]
[1753865015190,0.2448897,3828.6,3828.4,4.01]
[1753865015390,0.4996,3828.8,3828.4,4.01]
[1753865015593,0.24490808,3828.7,3828.4,6.62205329]
[1753865015754,0.24490808,3828.7,3828.5,3.06843398]
[1753865015950,0.042,3828.9,3828.6,4.1404]
[1753865016206,0.92926344,3828.9,3828.6,4.1404]
[1753865016402,0.24490344,3828.8,3828.6,4.1404]
[1753865016768,0.24490344,3828.7,3828.6,4.1404]
[1753865016970,0.28690344,3828.9,3828.6,4.1404]
[1753865017187,0.24490344,3828.8,3828.6,4.1404]
[1753865017400,0.24490344,3828.7,3828.6,4.1404]
[1753865017597,0.28690344,3828.9,3828.6,4.1404]
[1753865017899,0.24490344,3828.8,3828.6,4.1404]
[1753865018081,0.24490344,3828.7,3828.6,4.1404]
[1753865018892,0.24490344,3828.7,3828.6,4.5969]
[1753865019578,0.24490344,3828.7,3828.6,4.1404]
[1753865019781,0.28690344,3828.9,3828.6,4.1404]
[1753865019996,0.78650344,3828.9,3828.6,4.1404]
[1753865020188,0.24490344,3828.8,3828.6,4.1404]
[1753865020492,0.24490344,3828.8,3828.7,0.4565]
[1753865020681,0.28690344,3828.9,3828.7,0.5869]
[1753865021012,0.24491189,3828.8,3828.7,0.1304]
[1753865021212,0.28691189,3828.9,3828.7,4.1394]
[1753865021518,0.24491189,3828.8,3828.7,4.1394]
[1753865022620,0.4996,3828.8,3828.7,4.009]
[1753865022914,0.7833,3828.7,3827.9,0.001]
[1753865023117,0.1304,3828.4,3828.0,4.009]
[1753865023506,0.948,3828.3,3828.0,4.009]
[1753865023683,1.2317,3828.7,3828.0,4.009]
[1753865024013,0.4996,3828.5,3828.2,0.1304]
[1753865024211,0.4996,3828.5,3828.3,4.009]
[1753865024712,0.9137,3828.7,3828.3,6.62110863]
[1753865024920,0.99,3828.9,3828.4,0.5869]
[1753865024921,0.672,3828.9,3828.4,0.5869]
[1753865025107,0.7445366,3828.8,3828.5,4.009]
[1753865025303,0.86192,3828.9,3828.5,4.009]
[1753865025304,0.2449366,3828.7,3828.5,4.009]
[1753865025476,0.41352,3828.9,3828.5,4.009]
[1753865025681,0.24494531,3828.8,3828.5,4.009]
[1753865025878,0.24494531,3828.8,3828.6,0.5869]
[1753865026092,0.042,3828.9,3828.7,4.009]
[1753865026297,0.28694237,3828.9,3828.7,6.62084076]
[1753865026513,0.28694237,3828.9,3828.8,2.61178437]
[1753865026741,0.28694237,3828.9,3828.7,7.07733228]
[1753865027104,0.28694237,3828.9,3828.7,4.4655]
[1753865027744,0.28694237,3828.9,3828.7,7.07733255]
[1753865027939,0.28694237,3828.9,3828.7,4.009]
[1753865028138,0.78654237,3828.9,3828.7,4.009]
[1753865028443,0.74453349,3828.8,3828.7,4.009]
[1753865028603,0.74453349,3828.8,3828.6,0.1304]
[1753865028933,0.042,3828.9,3828.6,0.1304]
[1753865029101,0.4484,3828.8,3828.7,4.009]
[1753865029297,0.69333006,3828.8,3828.7,4.009]
[1753865029616,1.19293006,3828.8,3828.7,4.009]
[1753865029804,1.19293006,3828.8,3828.6,0.1304]
[1753865030127,0.4484,3828.8,3828.7,4.009]
[1753865030328,0.042,3828.9,3828.7,4.009]
[1753865030502,0.042,3828.9,3828.7,6.62079992]
[1753865031429,0.042,3828.9,3828.7,4.009]
[1753865031948,0.042,3828.9,3828.7,6.62083416]
[1753865032144,0.042,3828.9,3828.8,3.06828437]
[1753865032439,0.042,3828.9,3828.8,3.65588437]
[1753865032741,0.042,3828.9,3828.8,3.19868437]
[1753865033349,0.042,3828.9,3828.8,3.65588437]
[1753865034255,0.042,3828.9,3828.8,3.19868437]
[1753865035832,0.042,3828.9,3828.8,0.1304]
[1753865035833,0.5416,3828.9,3828.8,0.1304]
[1753865036058,1.1392,3828.9,3828.8,4.008]
[1753865036672,1.2696,3828.9,3828.8,4.008]
[1753865037085,0.8212,3828.9,3828.8,4.008]
[1753865037383,1.2696,3828.9,3828.8,4.008]
[1753865038086,0.042,3828.9,3828.8,4.008]
[1753865038390,0.042,3828.9,3828.8,3.16626131]
[1753865038587,0.5416,3828.9,3828.8,3.16626131]
[1753865038790,0.5416,3828.9,3828.8,4.008]
[1753865039875,0.99,3828.9,3828.8,4.008]
[1753865040236,1.1392,3828.9,3828.8,4.008]
[1753865040436,0.6908,3828.9,3828.8,4.008]
[1753865040678,0.7697,3828.8,3828.6,0.1304]
[1753865040880,0.7697,3828.8,3828.2,2.61213775]
[1753865040881,1.7152,3828.8,3828.7,4.008]
[1753865041034,1.95584,3828.8,3828.7,4.008]
[1753865041233,2.08624,3828.8,3828.7,4.008]
[1753865041877,0.72294,3828.8,3828.7,4.008]
[1753865042177,0.24064,3828.8,3828.7,4.008]
[1753865044273,0.72294,3828.8,3828.7,4.008]
[1753865044797,1.18614,3828.8,3828.7,4.007]
[1753865044979,0.7654,3828.7,3827.7,0.7879]
[1753865045181,0.7654,3828.7,3827.6,4.23]
[1753865045182,0.1304,3828.4,3828.0,4.007]
[1753865045482,0.9455,3828.3,3828.0,4.007]
[1753865045683,0.4823,3828.2,3828.0,4.007]
[1753865046476,0.4823,3828.1,3827.6,4.23]
[1753865046675,0.9455,3828.1,3828.0,4.007]
[1753865046879,0.4823,3828.1,3828.0,4.007]
[1753865047969,0.1304,3828.2,3828.0,4.007]
[1753865048794,0.6127,3828.2,3828.0,4.007]
[1753865049569,0.1304,3828.2,3827.7,0.1304]
[1753865049770,0.4823,3828.1,3828.0,4.007]
[1753865050794,0.1304,3828.2,3827.7,0.1304]
[1753865051101,1.0759,3828.0,3827.5,0.001]
[1753865051307,0.6127,3828.0,3827.9,4.008]
[1753865051681,2.04828,3828.0,3827.9,0.001]
[1753865054383,2.2928792,3828.0,3827.9,0.001]
[1753865056488,2.43955569,3828.0,3827.9,0.001]
[1753865058175,2.2928792,3828.0,3827.9,0.001]
[1753865058690,2.8428792,3828.0,3827.9,0.001]
[1753865059217,11.55378073,3828.0,3827.9,0.001]
[1753865059542,42.41875298,3828.0,3827.9,0.001]
[1753865059880,42.18651747,3828.0,3827.9,0.001]
[1753865060221,42.74011414,3828.0,3827.9,0.001]
[1753865060809,42.60971414,3828.0,3827.9,0.001]
[1753865062817,5.98938395,3828.0,3827.9,0.001]
[1753865063022,9.99738395,3828.0,3827.9,0.001]
[1753865063509,12.60971414,3828.0,3827.9,0.001]
[1753865063710,8.98418395,3828.0,3827.9,0.001]
[1753865063918,9.4471725,3828.0,3827.9,0.001]
[1753865064729,12.05950269,3828.0,3827.9,0.001]
[1753865065306,12.05947385,3828.0,3827.9,0.001]
[1753865068407,9.44714366,3828.0,3827.9,0.001]
[1753865068743,8.98394366,3828.0,3827.9,0.001]
[1753865069043,11.59627385,3828.0,3827.9,0.001]
[1753865069228,11.81487465,3828.0,3827.9,0.001]
[1753865069430,4.49281858,3828.0,3827.9,0.001]
[1753865069621,8.50081858,3828.0,3827.9,0.001]
[1753865071045,3.51615352,3828.0,3827.9,0.001]
[1753865071244,7.52415352,3828.0,3827.9,0.001]
[1753865073442,3.51615352,3828.0,3827.9,0.4616]
[1753865073606,7.38217352,3828.0,3827.9,0.4616]
[1753865075045,7.38217352,3828.0,3827.9,0.001]
[1753865075545,3.85237352,3828.0,3827.9,0.001]
[1753865075746,3.85237352,3828.0,3827.9,0.4616]
[1753865075933,3.85237352,3828.0,3827.9,0.9398]
[1753865076323,3.6086,3828.0,3827.9,0.9398]
[1753865076822,3.4782,3828.0,3827.9,0.9398]
[1753865077029,0.1304,3828.2,3827.9,0.9398]
[1753865077254,3.3745856,3828.2,3828.0,0.4606]
[1753865077543,0.1304,3828.2,3828.1,0.4782]
[1753865077841,0.37464365,3828.2,3828.1,0.9388]
[1753865078033,0.37464365,3828.2,3828.1,0.4606]
[1753865078260,0.37464365,3828.2,3827.9,0.4616]
[1753865078412,0.37464365,3828.2,3827.9,0.4792]
[1753865078724,0.37464365,3828.2,3828.0,0.4606]
[1753865079648,0.37464365,3828.2,3827.9,0.001]
[1753865079946,0.4872,3828.1,3827.9,0.001]
[1753865080162,0.37477778,3828.0,3827.9,0.001]
[1753865081606,0.85397778,3828.0,3827.9,0.001]
[1753865082655,1.34117778,3828.0,3827.9,0.001]
[1753865088760,0.85417589,3828.0,3827.9,0.001]
[1753865089350,1.80415181,3828.0,3827.9,0.001]
[1753865090065,2.29135181,3828.0,3827.9,0.001]
[1753865090646,1.80415181,3828.0,3827.9,0.001]
[1753865091455,2.29135181,3828.0,3827.9,0.001]
[1753865091843,1.80415181,3828.0,3827.9,0.001]
[1753865092852,2.29135181,3828.0,3827.9,0.001]
[1753865093161,1.80415181,3828.0,3827.9,0.001]
[1753865095424,0.85417589,3828.0,3827.9,0.9398]
[1753865095623,0.24457589,3828.0,3827.9,1.7727]
[1753865095968,0.1304,3828.2,3827.9,1.7727]
[1753865096198,0.3750825,3828.2,3828.0,0.9388]
[1753865096773,0.2446825,3828.1,3828.0,0.4782]
[1753865096939,0.24470856,3828.1,3827.9,0.8339]
[1753865097266,3.915581,3828.4,3827.9,0.9643]
[1753865097479,0.24474339,3828.3,3828.0,0.9388]
[1753865097678,0.24474339,3828.3,3827.9,3.57669779]
[1753865097892,0.24474339,3828.3,3828.1,0.9388]
[1753865098243,0.24474339,3828.3,3828.2,0.9388]
[1753865099042,3.37514339,3828.6,3828.2,0.9388]
[1753865099391,0.39159282,3828.5,3828.3,0.9388]
[1753865099594,0.24474339,3828.4,3828.2,0.818]
[1753865099890,0.24474339,3828.3,3828.2,3.43019372]
[1753865100389,0.24474339,3828.5,3828.2,4.36899372]
[1753865100682,0.24483246,3828.4,3828.3,4.31987818]
[1753865100881,0.24483246,3828.4,3828.3,1.3827]
[1753865101126,0.24483246,3828.4,3825.3,0.78506]
[1753865101127,30.0,3827.5,3825.3,0.78506]
[1753865101385,3.55,3827.3,3826.0,0.4556]
[1753865101555,0.55,3827.1,3826.2,0.4556]
[1753865101754,0.2449402,3827.2,3826.2,0.4556]
[1753865101755,4.28090718,3827.0,3826.2,0.4556]
[1753865101964,4.5037,3827.0,3826.2,0.4556]
[1753865102168,4.5791,3826.9,3826.2,3.58030693]
[1753865102353,4.036,3826.9,3826.5,0.7697]
[1753865102884,3.0,3827.0,3826.6,0.9111]
[1753865103192,3.4556,3827.1,3826.7,0.9111]
[1753865103492,3.4556,3827.1,3826.8,0.9111]
[1753865103493,0.64693032,3827.1,3826.8,0.9111]
[1753865103720,0.19133032,3827.1,3826.5,0.7697]
[1753865103996,3.0,3827.4,3826.9,0.4556]
[1753865104291,0.785381,3827.3,3826.9,0.4556]
[1753865104784,1.253081,3827.3,3826.9,0.4556]
[1753865105177,0.785381,3827.3,3826.5,0.7697]
[1753865105377,0.785381,3827.3,3826.6,0.9111]
[1753865105683,0.98520933,3827.3,3826.7,0.4556]
[1753865106694,0.98520933,3827.3,3826.7,0.9111]
[1753865106989,0.19982833,3827.3,3826.8,0.93723149]
[1753865107149,0.4677,3827.5,3826.6,3.09857134]
[1753865107150,3.4677,3827.5,3826.6,3.09857134]
[1753865107355,0.785349,3827.4,3826.9,0.9111]
[1753865107558,3.4677,3827.5,3826.8,2.61314123]
[1753865107786,4.25305,3827.5,3827.0,0.9111]
[1753865108091,4.25305,3827.5,3827.0,0.4556]
[1753865108256,0.4677,3827.4,3826.7,0.9111]
[1753865109516,3.78535,3827.5,3826.7,0.4556]
[1753865109682,0.39176888,3827.4,3826.9,3.09857134]
[1753865109883,0.39176888,3827.3,3827.0,0.9111]
[1753865110084,0.39176888,3827.2,3827.1,0.7732]
[1753865110305,0.24486677,3827.2,3827.1,1.6843]
[1753865110510,0.24486677,3827.5,3827.1,1.6843]
[1753865110692,0.39173621,3827.4,3827.2,0.9111]
[1753865110899,0.24486677,3827.3,3827.2,0.9111]
[1753865111094,0.785318,3827.6,3827.2,0.9111]
[1753865111095,0.24486677,3827.5,3827.2,0.4556]
[1753865111334,0.24486677,3827.4,3827.1,0.7732]
[1753865112102,0.24486677,3827.4,3827.2,0.9111]
[1753865112762,3.0,3827.9,3827.3,0.9111]
[1753865112915,0.37510796,3827.8,3827.3,1.0415]
[1753865113101,1.28277119,3827.8,3827.4,0.4556]
[1753865113303,0.24470796,3827.7,3827.4,0.4556]
[1753865114241,0.24470796,3827.7,3827.5,0.4556]
[1753865114551,0.71240796,3827.7,3827.3,0.1304]
[1753865114715,0.24470796,3827.6,3827.3,0.1304]
[1753865114904,0.4677,3827.6,3827.3,0.1304]
[1753865115099,0.57036323,3827.8,3827.3,0.1304]
[1753865115461,0.9394,3827.5,3826.9,4.026]
[1753865115754,0.4677,3827.4,3826.9,4.1564]
[1753865116099,0.4717,3827.3,3826.9,4.1564]
[1753865116320,0.9394,3827.2,3826.9,4.026]
[1753865116522,0.8015,3827.7,3826.5,1.2142]
[1753865116523,0.9394,3827.1,3826.7,0.1304]
[1753865116722,0.4677,3827.0,3826.7,4.1564]
[1753865116951,0.4717,3827.1,3826.7,4.1564]
[1753865117260,0.4677,3826.9,3826.7,4.1564]
[1753865117945,3.8015,3827.7,3826.3,0.001]
[1753865117946,0.4677,3826.8,3826.3,0.001]
[1753865118142,0.9394,3826.8,3826.3,0.001]
[1753865118445,0.24468582,3826.7,3826.3,0.001]
[1753865118821,0.4717,3826.6,3826.3,0.001]
[1753865119225,3.7872,3827.0,3826.3,0.001]
[1753865119226,0.9394,3826.5,3826.3,0.001]
[1753865119625,0.4677,3826.4,3826.3,0.001]
[1753865120229,4.2641,3826.4,3826.3,0.001]
[1753865120457,6.62548102,3826.4,3826.3,0.001]
[1753865120640,5.88921389,3826.4,3826.3,0.001]
[1753865121264,5.7424714,3826.4,3826.3,0.001]
[1753865121481,5.88912526,3826.4,3826.3,0.001]
[1753865122786,5.7424714,3826.4,3826.3,0.001]
[1753865122988,6.31671854,3826.4,3826.3,0.001]
[1753865127011,6.86671854,3826.4,3826.3,0.001]
[1753865127377,6.31671854,3826.4,3826.3,0.001]
[1753865127992,6.44711854,3826.4,3826.3,0.001]
[1753865128673,5.97541854,3826.4,3826.3,0.001]
[1753865129419,6.44711854,3826.4,3826.3,0.001]
[1753865130430,6.52541854,3826.4,3826.3,0.001]
[1753865130714,6.96911854,3826.4,3826.3,0.001]
[1753865132964,5.97541854,3826.4,3826.3,0.001]
[1753865133823,4.58491854,3826.4,3826.3,0.001]
[1753865134138,3.0,3826.4,3826.3,0.001]
[1753865134304,0.104739,3826.5,3826.3,0.9225]
[1753865134509,0.0130654,3826.9,3826.3,0.4661]
[1753865134777,0.4033217,3826.9,3826.4,0.4564]
[1753865135044,2.16089747,3826.8,3826.4,0.4564]
[1753865135244,0.2439084,3826.7,3826.4,0.4564]
[1753865135604,1.29904117,3826.8,3826.5,0.4564]
[1753865135840,0.0130654,3826.9,3826.6,0.9215]
[1753865136003,0.0130654,3826.9,3826.7,0.7812]
[1753865136209,0.0130654,3826.9,3826.7,1.7027]
[1753865136413,0.0130654,3826.9,3826.8,0.9215]
[1753865136607,0.0130654,3826.9,3826.8,6.6332207]
[1753865137131,0.0130654,3826.9,3826.8,4.02007134]
[1753865137326,0.0130654,3826.9,3826.8,0.9215]
[1753865137506,0.0130654,3826.9,3826.8,4.9605]
[1753865139243,0.0130654,3826.9,3826.3,0.756]
[1753865139557,1.17241751,3826.9,3826.4,4.038]
[1753865139715,1.29124227,3826.8,3826.3,0.001]
[1753865139911,0.24405211,3826.7,3826.3,0.001]
[1753865140124,1.15935211,3826.7,3826.3,0.001]
[1753865140329,0.68775211,3826.6,3826.3,0.001]
[1753865140531,0.9153,3826.6,3826.3,0.001]
[1753865140754,0.4716,3826.5,3826.3,0.001]
[1753865142557,0.4716,3826.6,3826.3,0.001]
[1753865142764,0.13189016,3826.8,3826.3,0.4574]
[1753865142975,0.24424996,3826.7,3826.3,0.4574]
[1753865143254,0.24424996,3826.7,3826.4,0.4564]
[1753865143442,0.0130654,3826.9,3826.4,0.4564]
[1753865143644,0.7290036,3826.9,3826.4,0.4564]
[1753865143874,0.1304,3826.7,3826.4,0.4564]
[1753865144727,0.0130654,3826.9,3826.5,1.7365]
[1753865145060,0.1304,3826.8,3826.6,0.4564]
[1753865145264,0.1304,3826.8,3826.7,4.037]
[1753865145680,0.0130654,3826.9,3826.7,4.4934]
[1753865146259,0.25765658,3826.9,3826.7,4.037]
[1753865146471,0.0130654,3826.9,3826.7,4.037]
[1753865147291,0.0130654,3826.9,3826.8,0.9215]